bitfinex-derivatives/quotes_BTCF0:USTF0_20210105
["timestamp","ask_amount","ask_price","bid_price","bid_amount"]
[1609833161506,0.13632608,30873.0,30872.0,4.83032608]
[1609833161909,0.59263498,30891.0,30872.0,4.83032608]
[1609833162108,0.59263498,30891.0,30872.0,0.24617608]
[1609833162309,0.59263498,30891.0,30880.0,4.3868]
[1609833163510,0.59263498,30891.0,30890.0,0.13632608]
[1609833164412,0.59263498,30891.0,30890.0,5.00362608]
[1609833165012,0.573339,30891.0,30890.0,5.00362608]
[1609833165812,0.59589467,30905.0,30890.0,5.00362608]
[1609833166515,0.01940212,30905.0,30890.0,5.00362608]
[1609833166715,0.01940212,30905.0,30890.0,4.8673]
[1609833167318,0.5957415,30904.0,30890.0,4.8673]
[1609833167517,0.13632608,30891.0,30890.0,4.8673]
[1609833177030,0.10916,30896.0,30890.0,4.8673]
[1609833177430,0.16437996,30904.0,30890.0,4.8673]
[1609833177632,0.13632608,30891.0,30890.0,0.13632608]
[1609833178635,0.13632608,30891.0,30890.0,4.83642608]
[1609833178833,0.59635162,30903.0,30890.0,4.83642608]
[1609833179033,0.59635162,30903.0,30897.0,3.6856]
[1609833179434,0.14499,30904.0,30897.0,3.6856]
[1609833179634,0.59770745,30905.0,30902.0,0.13632608]
[1609833179833,0.59770745,30905.0,30904.0,4.2252]
[1609833180434,0.01946537,30906.0,30904.0,4.2252]
[1609833181233,0.57837199,30907.0,30904.0,4.2252]
[1609833181234,0.15613736,30907.0,30904.0,4.2252]
[1609833181534,0.15613736,30907.0,30906.0,0.13632608]
[1609833181736,0.13632608,30912.0,30906.0,0.13632608]
[1609833183637,0.13632608,30912.0,30910.0,0.13632608]
[1609833183837,0.13632608,30912.0,30910.0,0.78112608]
[1609833184338,0.98033168,30921.0,30910.0,0.13632608]
[1609833184539,0.69607054,30920.0,30910.0,0.13632608]
[1609833184741,0.80720054,30920.0,30915.0,5.1732]
[1609833185644,0.80720054,30920.0,30917.0,0.13632608]
[1609833185843,0.11113,30920.0,30917.0,0.13632608]
[1609833186643,0.11113,30920.0,30919.0,4.9416]
[1609833187645,0.24745608,30920.0,30919.0,4.9416]
[1609833188446,0.24745608,30920.0,30917.0,0.13632608]
[1609833188647,0.24745608,30920.0,30917.0,5.24502608]
[1609833195359,0.24745608,30920.0,30917.0,0.13632608]
[1609833195556,0.24745608,30920.0,30919.0,5.0748]
[1609833196557,0.21555608,30920.0,30919.0,5.0748]
[1609833197357,0.00974888,30939.0,30919.0,5.0748]
[1609833197556,0.00974888,30939.0,30929.0,0.13632608]
[1609833197958,0.00974584,30940.0,30929.0,0.83672608]
[1609833199562,0.13632608,30930.0,30929.0,0.83672608]
[1609833199763,0.26987608,30930.0,30929.0,0.83672608]
[1609833202168,0.26987608,30930.0,30912.0,0.0983]
[1609833202367,0.26987608,30930.0,30914.0,5.4319]
[1609833202766,4.7137,30929.0,30914.0,5.4319]
[1609833203667,4.7137,30929.0,30916.0,0.13632608]
[1609833205667,0.13632608,30917.0,30916.0,0.13632608]
[1609833207172,0.10456,30921.0,30916.0,0.13632608]
[1609833207673,0.10456,30921.0,30920.0,0.13632608]
[1609833208674,0.10456,30921.0,30914.0,5.4319]
[1609833209674,0.10456,30921.0,30917.0,0.13632608]
[1609833211276,0.13632608,30926.0,30917.0,0.13632608]
[1609833211677,0.13632608,30918.0,30917.0,0.13632608]
[1609833213578,0.13632608,30918.0,30914.0,5.4319]
[1609833218486,0.13632608,30918.0,30911.0,0.13632608]
[1609833218887,0.13632608,30918.0,30908.0,3.8403]
[1609833219086,0.13632608,30918.0,30883.0,2.15103445]
[1609833219287,5.0352,30915.0,30894.0,3.8175]
[1609833219487,5.16497,30915.0,30894.0,3.8175]
[1609833219888,0.13632608,30895.0,30894.0,3.8175]
[1609833220088,0.13632608,30895.0,30887.0,0.28596608]
[1609833220288,0.13632608,30895.0,30888.0,4.4852]
[1609833221791,0.13632608,30889.0,30888.0,4.4852]
[1609833221993,0.13632608,30889.0,30887.0,0.13632608]
[1609833222394,0.13632608,30889.0,30881.0,3.6581]
[1609833222796,0.14404,30891.0,30878.0,2.15738375]
[1609833222999,4.1731,30889.0,30873.0,0.09457]
[1609833223799,0.13632608,30874.0,30873.0,0.09457]
[1609833224397,0.13632608,30874.0,30866.0,0.13632608]
[1609833225199,0.23231608,30874.0,30866.0,0.13632608]
[1609833225902,0.13632608,30867.0,30866.0,0.13632608]
[1609833226102,0.09599,30874.0,30866.0,0.13632608]
[1609833226502,0.09599,30874.0,30868.0,4.2163]
[1609833227805,0.09599,30874.0,30873.0,0.13632608]
[1609833228007,0.09992,30884.0,30873.0,0.13632608]
[1609833228205,0.09992,30884.0,30873.0,0.75902608]
[1609833228607,0.09992,30884.0,30873.0,0.13632608]
[1609833229206,3.9259,30885.0,30873.0,0.13632608]
[1609833229406,0.00961357,30897.0,30873.0,0.13632608]
[1609833229606,0.00961357,30897.0,30885.0,3.729]
[1609833229807,0.13632608,30893.0,30890.0,0.13632608]
[1609833230007,0.23815608,30893.0,30890.0,0.13632608]
[1609833230208,0.10183,30893.0,30892.0,4.7847]
[1609833231210,0.00961357,30897.0,30892.0,4.7847]
[1609833232010,0.00961357,30897.0,30896.0,0.13632608]
[1609833232611,0.13632608,30899.0,30897.0,4.2765]
[1609833236015,0.2952,30908.0,30897.0,4.2765]
[1609833236415,0.2952,30908.0,30892.0,0.13632608]
[1609833236616,0.14648,30909.0,30901.0,4.3446]
[1609833236816,0.14648,30909.0,30892.0,0.26245608]
[1609833237023,0.14648,30909.0,30900.0,4.028]
[1609833237216,0.14648,30909.0,30892.0,0.26245608]
[1609833237421,0.14648,30909.0,30901.0,4.1592]
[1609833237621,0.14648,30909.0,30892.0,0.26245608]
[1609833237823,0.14648,30909.0,30902.0,3.6452]
[1609833238022,0.14648,30909.0,30906.0,0.13632608]
[1609833238423,0.00969582,30910.0,30906.0,0.13632608]
[1609833238624,0.13632608,30918.0,30909.0,3.7107]
[1609833240024,0.13632608,30913.0,30909.0,3.7107]
[1609833240426,0.24181608,30913.0,30909.0,3.7107]
[1609833242026,0.24181608,30913.0,30911.0,0.13632608]
[1609833249439,0.24181608,30913.0,30909.0,3.7107]
[1609833259950,0.24181608,30913.0,30902.0,0.13632608]
[1609833260153,0.13632608,30903.0,30902.0,0.13632608]
[1609833262056,0.13632608,30903.0,30899.0,3.7124]
[1609833263960,0.13632608,30903.0,30885.0,0.13693]
[1609833264159,0.13632608,30898.0,30893.0,4.1077]
[1609833264360,0.13632608,30898.0,30878.0,2.25465992]
[1609833264559,5.1899,30895.0,30883.0,5.2405]
[1609833264758,5.28857,30895.0,30883.0,5.2405]
[1609833265860,0.09867,30895.0,30878.0,2.16323992]
[1609833266261,0.09867,30895.0,30888.0,4.5312]
[1609833266462,0.09867,30895.0,30878.0,2.16323992]
[1609833266663,0.09867,30895.0,30892.0,4.3069]
[1609833266863,0.13632608,30893.0,30892.0,4.3069]
[1609833269665,0.13632608,30893.0,30887.0,0.13632608]
[1609833270868,0.13632608,30888.0,30887.0,0.13632608]
[1609833275371,0.13632608,30888.0,30885.0,5.1274]
[1609833275571,0.24206608,30888.0,30872.0,0.13873]
[1609833275771,0.24206608,30888.0,30871.0,4.5205]
[1609833275973,0.10574,30888.0,30871.0,4.5205]
[1609833276974,0.13632608,30872.0,30865.0,2.16501744]
[1609833277375,0.13632608,30872.0,30864.0,4.80452608]
[1609833279880,0.09181,30881.0,30864.0,4.80452608]
[1609833280982,0.13632608,30877.0,30864.0,4.80452608]
[1609833282785,0.13632608,30877.0,30864.0,0.13632608]
[1609833282984,0.13632608,30873.0,30864.0,0.13632608]
[1609833283185,4.0061,30874.0,30864.0,0.13632608]
[1609833283386,0.09181,30881.0,30864.0,0.13632608]
[1609833283589,0.2711,30882.0,30870.0,3.9074]
[1609833283987,0.00403135,30890.0,30870.0,3.9074]
[1609833285089,0.00403135,30890.0,30884.0,0.13632608]
[1609833285289,4.546,30889.0,30884.0,0.13632608]
[1609833285990,4.546,30889.0,30876.0,5.0495]
[1609833286992,0.13632608,30879.0,30877.0,0.13632608]
[1609833293409,0.13632608,30879.0,30878.0,5.2408]
[1609833294611,0.13632608,30879.0,30867.0,0.13163]
[1609833294809,0.13632608,30879.0,30868.0,4.0838]
[1609833295011,0.13547,30885.0,30872.0,0.13632608]
[1609833295210,5.2655,30887.0,30872.0,0.13632608]
[1609833295410,5.2655,30887.0,30872.0,0.75392608]
[1609833296512,0.00405113,30890.0,30872.0,0.13632608]
[1609833296913,0.00405113,30890.0,30876.0,5.3869]
[1609833297116,0.13632608,30877.0,30876.0,5.3869]
[1609833299016,0.11981,30879.0,30876.0,5.3869]
[1609833299417,0.00405202,30891.0,30876.0,5.3869]
[1609833299619,0.86195242,30893.0,30876.0,5.3869]
[1609833299620,0.2829,30893.0,30876.0,5.3869]
[1609833301218,0.2829,30893.0,30883.0,0.5722]
[1609833301519,0.2956,30894.0,30883.0,0.5722]
[1609833301720,0.2956,30894.0,30882.0,0.13632608]
[1609833301919,0.2956,30894.0,30885.0,4.3831]
[1609833303222,0.2956,30894.0,30887.0,0.13632608]
[1609833304624,0.2956,30894.0,30893.0,3.7692]
[1609833304822,0.09867,30895.0,30893.0,3.7692]
[1609833305222,0.01392577,30899.0,30894.0,0.13632608]
[1609833305523,0.00406924,30902.0,30894.0,0.13632608]
[1609833306523,0.01396318,30903.0,30894.0,0.13632608]
[1609833307125,0.01396318,30903.0,30901.0,0.13632608]
[1609833308726,0.01396318,30903.0,30901.0,3.81802608]
[1609833308925,0.01396318,30903.0,30901.0,0.13632608]
[1609833309125,0.13632608,30902.0,30901.0,0.13632608]
[1609833309526,0.13632608,30902.0,30901.0,4.66772608]
[1609833311127,0.13632608,30902.0,30901.0,0.13632608]
[1609833311327,0.13632608,30902.0,30883.0,0.12924]
[1609833311527,0.13632608,30902.0,30888.0,4.7649]
[1609833313129,0.10622,30904.0,30893.0,0.13632608]
[1609833313329,0.556,30903.0,30888.0,4.7649]
[1609833313730,0.68088,30903.0,30888.0,4.7649]
[1609833314132,4.3415,30898.0,30876.0,5.11712]
[1609833314734,0.12488,30903.0,30877.0,1.32416683]
[1609833314933,5.1036,30882.0,30877.0,1.32416683]
[1609833315135,0.13632608,30878.0,30877.0,1.32416683]
[1609833315534,4.66332608,30878.0,30877.0,1.32416683]
[1609833315736,4.66332608,30878.0,30865.0,4.0447]
[1609833317236,0.13632608,30866.0,30865.0,4.0447]
[1609833323947,0.65482608,30866.0,30863.0,0.13632608]
[1609833324148,0.13632608,30866.0,30863.0,0.13632608]
[1609833324650,0.13632608,30866.0,30851.0,3.9209]
[1609833324850,4.4923,30861.0,30851.0,3.9209]
[1609833325251,4.4923,30861.0,30858.0,0.13632608]
[1609833325851,4.4923,30861.0,30858.0,0.27445608]
[1609833327153,0.0969,30879.0,30858.0,0.13813]
[1609833327354,4.88452608,30859.0,30851.0,0.14561]
[1609833327954,4.88452608,30859.0,30852.0,2.16636897]
[1609833328756,0.13632608,30859.0,30852.0,2.16636897]
[1609833328957,3.9858,30853.0,30852.0,2.16636897]
[1609833329158,4.11448,30853.0,30852.0,1.79346897]
[1609833329358,4.25080608,30853.0,30852.0,1.79346897]
[1609833329959,4.11448,30853.0,30852.0,1.79346897]
[1609833330959,4.11448,30853.0,30852.0,0.93556897]
[1609833331162,4.25080608,30853.0,30852.0,0.93556897]
[1609833332962,0.26500608,30853.0,30852.0,0.93556897]
[1609833335868,0.26500608,30853.0,30845.0,0.13632608]
[1609833337367,0.13632608,30846.0,30824.0,2.35838414]
[1609833337567,0.13632608,30846.0,30826.0,4.6435]
[1609833338268,0.25898608,30846.0,30826.0,4.6435]
[1609833339271,0.12266,30846.0,30835.0,0.13632608]
[1609833339471,0.12266,30846.0,30844.0,3.8354]
[1609833340272,0.12868,30853.0,30844.0,3.8354]
[1609833340673,0.00409001,30857.0,30844.0,3.8354]
[1609833341074,0.00408492,30858.0,30844.0,3.8354]
[1609833341275,0.13632608,30856.0,30855.0,0.13632608]
[1609833341477,0.60340065,30860.0,30855.0,0.13632608]
[1609833341675,0.60340065,30860.0,30857.0,4.2007]
[1609833341876,0.01970213,30869.0,30857.0,4.2007]
[1609833342276,0.01970213,30869.0,30850.0,0.14851]
[1609833342477,5.0453,30866.0,30850.0,0.14851]
[1609833342876,5.0453,30866.0,30844.0,4.0329]
[1609833343377,5.0453,30866.0,30851.0,0.13632608]
[1609833345283,0.13632608,30852.0,30851.0,0.13632608]
[1609833348488,0.09708,30857.0,30851.0,0.13632608]
[1609833349391,0.13632608,30852.0,30851.0,0.13632608]
[1609833349792,0.09708,30857.0,30851.0,0.13632608]
[1609833349992,0.09708,30857.0,30851.0,0.70982608]
[1609833350392,0.2781,30865.0,30851.0,0.70982608]
[1609833351292,0.13632608,30854.0,30851.0,0.70982608]
[1609833355996,0.0986,30857.0,30851.0,0.70982608]
[1609833356696,0.2781,30865.0,30851.0,0.70982608]
[1609833357397,0.2781,30865.0,30860.0,0.13632608]
[1609833359401,0.13632608,30861.0,30860.0,0.13632608]
[1609833359603,0.25106608,30861.0,30860.0,0.13632608]
[1609833364809,0.25106608,30861.0,30851.0,0.5735]
[1609833365410,0.11474,30861.0,30858.0,0.13632608]
[1609833365612,3.9629,30865.0,30858.0,0.13632608]
[1609833367411,0.13632608,30862.0,30858.0,0.13632608]
[1609833367611,0.27280608,30862.0,30858.0,0.13632608]
[1609833368513,0.27280608,30862.0,30858.0,0.83942608]
[1609833369011,0.13648,30862.0,30858.0,0.13632608]
[1609833369211,0.13648,30862.0,30861.0,5.0205]
[1609833370912,0.58111258,30870.0,30861.0,5.0205]
[1609833371115,0.58111258,30870.0,30858.0,0.13632608]
[1609833371515,0.58111258,30870.0,30869.0,0.13632608]
[1609833371715,0.50381258,30870.0,30869.0,0.27916608]
[1609833373417,0.50381258,30870.0,30869.0,0.14284]
[1609833373917,0.05431704,30874.0,30869.0,0.27916608]
[1609833374517,0.05431704,30874.0,30871.0,5.1873]
[1609833374719,0.96577985,30888.0,30871.0,5.1873]
[1609833375921,0.96577985,30888.0,30887.0,0.13632608]
[1609833382432,0.9858239,30900.0,30887.0,0.13632608]
[1609833382631,0.7136239,30900.0,30898.0,4.0669]
[1609833383734,0.3545239,30900.0,30898.0,4.0669]
[1609833383936,0.3545239,30900.0,30898.0,0.10488]
[1609833384135,0.3545239,30900.0,30899.0,0.13632608]
[1609833384540,0.96690752,30913.0,30910.0,5.3441]
[1609833385139,0.281,30928.0,30910.0,5.3441]
[1609833385939,0.47555211,30926.0,30899.0,0.13632608]
[1609833386139,0.13632608,30921.0,30915.0,0.13632608]
[1609833387340,0.09346,30926.0,30913.0,4.711]
[1609833388041,0.13632608,30921.0,30913.0,4.711]
[1609833390145,0.09346,30926.0,30916.0,0.13632608]
[1609833391247,0.281,30928.0,30916.0,0.13632608]
[1609833392148,0.13632608,30924.0,30916.0,0.13632608]
[1609833392348,0.25506608,30924.0,30916.0,0.13632608]
[1609833394053,0.13632608,30917.0,30916.0,0.13632608]
[1609833399561,0.11874,30924.0,30916.0,0.13632608]
[1609833400062,0.13632608,30923.0,30916.0,0.13632608]
[1609833400464,0.23014608,30923.0,30898.0,0.10488]
[1609833400663,4.9944,30919.0,30906.0,3.8732]
[1609833402067,0.13632608,30908.0,30906.0,3.8732]
[1609833406174,4.9944,30919.0,30907.0,0.13632608]
[1609833408175,0.13632608,30912.0,30907.0,0.13632608]
[1609833416185,0.13632608,30908.0,30907.0,0.13632608]
[1609833418890,0.12133,30916.0,30912.0,5.1605]
[1609833419289,0.09382,30923.0,30912.0,5.1605]
[1609833419490,0.281,30928.0,30912.0,5.1605]
[1609833420191,0.13632608,30913.0,30912.0,5.1605]
[1609833421495,0.13632608,30913.0,30907.0,0.13632608]
[1609833421895,4.6179,30911.0,30907.0,0.13632608]
[1609833422194,0.13632608,30908.0,30902.0,3.8718]
[1609833422395,0.13632608,30908.0,30894.0,0.13632608]
[1609833422596,4.1124,30906.0,30894.0,0.13632608]
[1609833423198,4.1124,30906.0,30891.0,0.09821]
[1609833423399,4.1124,30906.0,30890.0,4.872]
[1609833424299,0.13632608,30891.0,30890.0,4.2524]
[1609833424501,0.13632608,30891.0,30873.0,2.1377267]
[1609833424700,0.13632608,30891.0,30879.0,4.663]
[1609833426304,0.13632608,30880.0,30879.0,4.663]
[1609833426908,0.13632608,30880.0,30873.0,2.27405278]
[1609833427109,4.8581,30878.0,30873.0,2.27405278]
[1609833427908,0.13632608,30880.0,30873.0,2.27405278]
[1609833428109,0.13632608,30880.0,30876.0,4.2206]
[1609833428510,0.14612,30888.0,30876.0,4.2206]
[1609833429809,0.90732,30888.0,30876.0,4.359]
[1609833430212,0.13632608,30877.0,30876.0,4.49532608]
[1609833431012,0.13632608,30877.0,30876.0,4.359]
[1609833432811,0.13632608,30877.0,30876.0,0.1384]
[1609833433011,0.13632608,30877.0,30870.0,4.333]
[1609833434315,0.13632608,30871.0,30870.0,4.333]
[1609833436717,0.13632608,30871.0,30857.0,2.33246572]
[1609833437018,0.13632608,30871.0,30862.0,4.3789]
[1609833438318,0.13632608,30863.0,30862.0,4.3789]
[1609833438518,0.13632608,30863.0,30857.0,2.33246572]
[1609833440220,0.13632608,30858.0,30857.0,1.95946572]
[1609833440421,0.13632608,30858.0,30857.0,2.36129822]
[1609833441424,4.2376,30858.0,30839.0,7.20403763]
[1609833441624,0.11259,30863.0,30839.0,2.36703763]
[1609833441824,5.0812,30847.0,30839.0,2.36703763]
[1609833442024,0.11845,30852.0,30839.0,2.36703763]
[1609833442226,5.17272608,30840.0,30839.0,2.36703763]
[1609833442424,5.17272608,30840.0,30838.0,2.75225195]
[1609833443528,5.17272608,30840.0,30838.0,2.57515195]
[1609833444230,0.13632608,30840.0,30838.0,2.57515195]
[1609833444430,0.11845,30852.0,30838.0,2.57515195]
[1609833445530,0.2981,30855.0,30838.0,2.57515195]
[1609833446331,0.2981,30855.0,30845.0,0.13632608]
[1609833446531,0.11259,30863.0,30845.0,0.13632608]
[1609833446931,0.67725478,30868.0,30845.0,0.13632608]
[1609833447533,0.67725478,30868.0,30844.0,4.2556]
[1609833447735,0.67725478,30868.0,30842.0,0.09473]
[1609833447933,4.3661,30857.0,30842.0,0.09473]
[1609833448134,0.10499,30857.0,30842.0,0.09473]
[1609833448335,0.13632608,30843.0,30842.0,0.09473]
[1609833448534,0.13632608,30843.0,30838.0,2.57515195]
[1609833448735,4.0175,30840.0,30838.0,2.57515195]
[1609833449937,4.0175,30840.0,30832.0,2.37711663]
[1609833450338,0.13632608,30835.0,30832.0,2.37711663]
[1609833450537,0.13632608,30835.0,30827.0,0.13632608]
[1609833453940,4.0175,30840.0,30827.0,0.13632608]
[1609833454342,0.13632608,30831.0,30827.0,0.28483608]
[1609833456143,4.0175,30840.0,30827.0,0.28483608]
[1609833456345,0.13632608,30834.0,30831.0,0.13632608]
[1609833459245,4.2918,30832.0,30831.0,0.13632608]
[1609833460648,4.2918,30832.0,30827.0,0.14851]
[1609833460851,0.13632608,30834.0,30812.0,0.2908]
[1609833461049,4.1189,30828.0,30814.0,4.7655]
[1609833461251,4.1074,30826.0,30812.0,0.42965]
[1609833461450,4.1074,30826.0,30812.0,0.13885]
[1609833461850,0.13632608,30834.0,30812.0,0.13885]
[1609833462455,5.0523,30813.0,30812.0,0.13885]
[1609833462653,5.0523,30813.0,30805.0,0.13703]
[1609833462854,0.13632608,30806.0,30799.0,2.25647496]
[1609833463257,4.1773,30800.0,30799.0,2.25647496]
[1609833463959,0.13632608,30806.0,30799.0,2.25647496]
[1609833464159,0.13632608,30806.0,30799.0,0.13632608]
[1609833464358,0.6297,30805.0,30799.0,0.13632608]
[1609833464958,0.13632608,30814.0,30804.0,0.13632608]
[1609833465360,0.13632608,30814.0,30805.0,5.1859]
[1609833465760,0.10505,30817.0,30805.0,5.1859]
[1609833466162,0.2987,30827.0,30804.0,0.26720608]
[1609833466360,0.2987,30827.0,30808.0,4.288]
[1609833466561,0.2987,30827.0,30804.0,0.26720608]
[1609833466761,4.1885,30813.0,30804.0,0.26720608]
[1609833466963,0.13632608,30805.0,30804.0,0.26720608]
[1609833467163,5.24392608,30805.0,30804.0,0.13632608]
[1609833467564,0.13632608,30805.0,30804.0,0.13632608]
[1609833468364,0.13632608,30805.0,30797.0,4.1601]
[1609833468767,0.13632608,30805.0,30796.0,0.13324]
[1609833468964,3.8785,30803.0,30799.0,0.13632608]
[1609833469564,0.13166,30818.0,30799.0,0.13632608]
[1609833469765,4.16716,30818.0,30796.0,0.13324]
[1609833470164,4.16716,30818.0,30793.0,5.4062]
[1609833470864,0.13632608,30815.0,30809.0,0.13632608]
[1609833471064,0.13166,30818.0,30809.0,0.13632608]
[1609833471264,0.13166,30818.0,30797.0,4.8407]
[1609833471468,0.13166,30818.0,30803.0,0.10721]
[1609833471865,0.13166,30818.0,30804.0,4.8713]
[1609833472073,0.4326,30827.0,30804.0,4.8713]
[1609833472868,0.5293,30827.0,30804.0,4.8713]
[1609833473064,0.4326,30827.0,30804.0,4.8713]
[1609833474165,0.5294,30827.0,30804.0,4.8713]
[1609833474366,0.4326,30827.0,30804.0,4.8713]
[1609833476571,1.1648,30827.0,30804.0,4.8713]
[1609833476771,0.4326,30827.0,30802.0,0.11479]
[1609833476970,0.13632608,30803.0,30802.0,0.11479]
[1609833477571,0.13632608,30803.0,30795.0,0.13632608]
[1609833478271,0.14773,30806.0,30786.0,4.8012]
[1609833479075,0.14773,30806.0,30795.0,0.13632608]
[1609833479272,0.14773,30806.0,30770.0,0.0961]
[1609833479474,0.14773,30806.0,30783.0,4.2548]
[1609833480074,0.14773,30806.0,30770.0,0.0961]
[1609833480275,4.9826,30796.0,30769.0,5.2024]
[1609833480477,5.12225,30796.0,30769.0,5.2024]
[1609833481077,5.12225,30796.0,30781.0,0.13632608]
[1609833483078,0.13632608,30782.0,30781.0,0.13632608]
[1609833483480,0.27080608,30782.0,30781.0,0.13632608]
[1609833484481,0.27080608,30782.0,30766.0,2.1505543]
[1609833485181,0.13448,30782.0,30777.0,0.13632608]
[1609833485682,0.13448,30782.0,30766.0,2.1505543]
[1609833485883,5.0656,30774.0,30766.0,2.1505543]
[1609833486082,5.0656,30774.0,30764.0,2.24785201]
[1609833486487,5.0656,30774.0,30764.0,2.15071201]
[1609833486890,5.0656,30774.0,30760.0,2.15126844]
[1609833487086,0.13632608,30762.0,30761.0,0.13632608]
[1609833488083,0.13632608,30762.0,30752.0,2.15145662]
[1609833488887,3.8587,30763.0,30752.0,2.15145662]
[1609833489286,0.13632608,30753.0,30752.0,2.15145662]
[1609833489489,0.09339,30768.0,30752.0,2.15145662]
[1609833491389,0.09339,30768.0,30767.0,0.13632608]
[1609833491588,0.09339,30768.0,30755.0,0.12286]
[1609833491992,0.13632608,30774.0,30755.0,0.12286]
[1609833492189,0.13632608,30774.0,30755.0,0.69036]
[1609833492390,0.11719,30775.0,30755.0,0.69036]
[1609833492590,4.3174,30778.0,30755.0,0.69036]
[1609833492990,4.3174,30778.0,30755.0,0.78806]
[1609833493292,4.3174,30778.0,30772.0,0.13632608]
[1609833493492,0.13632608,30780.0,30772.0,0.13632608]
[1609833493693,4.1228,30800.0,30772.0,0.13632608]
[1609833494497,4.1228,30800.0,30771.0,4.9969]
[1609833494697,4.2265,30800.0,30771.0,4.9969]
[1609833495295,0.13632608,30791.0,30785.0,0.13632608]
[1609833495696,0.28007608,30791.0,30785.0,0.13632608]
[1609833496897,0.14375,30791.0,30785.0,0.13632608]
[1609833497397,0.14375,30791.0,30790.0,0.13632608]
[1609833497699,0.14375,30791.0,30776.0,0.1233]
[1609833498699,0.14375,30791.0,30766.0,4.5806]
[1609833499500,0.13632608,30774.0,30766.0,4.5806]
[1609833500001,0.27350608,30774.0,30766.0,4.5806]
[1609833500202,0.27350608,30774.0,30763.0,0.13632608]
[1609833501005,0.13718,30774.0,30759.0,2.15118488]
[1609833501203,0.80808,30774.0,30759.0,2.15118488]
[1609833501404,0.13632608,30760.0,30759.0,2.15118488]
[1609833501605,0.27706608,30760.0,30759.0,2.15118488]
[1609833502208,0.27706608,30760.0,30749.0,0.13632608]
[1609833503406,0.14074,30760.0,30733.0,2.13321995]
[1609833503807,0.13632608,30752.0,30750.0,0.13632608]
[1609833504209,0.13197,30752.0,30750.0,0.13632608]
[1609833504808,0.13197,30752.0,30733.0,0.0967]
[1609833505009,0.13197,30752.0,30732.0,2.13326066]
[1609833505808,0.13197,30752.0,30746.0,0.13632608]
[1609833507213,0.13197,30752.0,30732.0,0.1203]
[1609833507414,0.13197,30752.0,30736.0,3.8199]
[1609833507915,0.13632608,30749.0,30744.0,0.13632608]
[1609833508817,0.13197,30752.0,30744.0,0.13632608]
[1609833509017,0.13197,30752.0,30746.0,4.8993]
[1609833509217,0.14074,30760.0,30746.0,4.8993]
[1609833509418,0.48779877,30772.0,30746.0,4.8993]
[1609833509818,0.13632608,30768.0,30764.0,0.13632608]
[1609833510019,0.13718,30774.0,30764.0,0.13632608]
[1609833510221,4.783,30796.0,30764.0,0.13632608]
[1609833511823,0.13632608,30772.0,30764.0,0.13632608]
[1609833512121,0.11539,30772.0,30764.0,0.13632608]
[1609833512322,4.783,30796.0,30764.0,0.13632608]
[1609833512524,0.13649,30772.0,30764.0,0.13632608]
[1609833512734,0.02119,30772.0,30769.0,5.29]
[1609833513133,0.02119,30772.0,30769.0,5.39002]
[1609833513335,0.02119,30772.0,30769.0,0.10002]
[1609833513532,4.1684,30808.0,30769.0,0.10002]
[1609833513729,4.1684,30808.0,30771.0,5.3569]
[1609833513934,4.1684,30808.0,30792.0,0.13632608]
[1609833514133,0.2957,30814.0,30792.0,0.13632608]
[1609833515133,3.87847062,30827.0,30792.0,0.13632608]
[1609833515134,3.8605,30827.0,30792.0,0.13632608]
[1609833515629,0.31431347,30834.0,30792.0,0.23432608]
[1609833515830,0.2963,30834.0,30813.0,0.13632608]
[1609833516730,0.0958,30833.0,30798.0,3.7157]
[1609833516929,0.0968,30832.0,30798.0,3.7157]
[1609833517831,0.13632608,30809.0,30805.0,0.13632608]
[1609833518429,0.27866608,30809.0,30805.0,0.13632608]
[1609833521637,0.27866608,30809.0,30794.0,4.0868]
[1609833521837,0.27866608,30809.0,30794.0,4.1845]
[1609833522038,0.14234,30809.0,30807.0,0.13632608]
[1609833523339,0.70577318,30833.0,30807.0,0.13632608]
[1609833523340,0.15016,30833.0,30807.0,0.13632608]
[1609833523539,0.0968,30832.0,30807.0,0.13632608]
[1609833523841,0.00914566,30835.0,30807.0,0.13632608]
[1609833524041,0.13632608,30813.0,30811.0,0.13632608]
[1609833526743,0.13632608,30813.0,30800.0,4.0776]
[1609833528044,0.13632608,30801.0,30785.0,0.13632608]
[1609833528244,0.28291608,30801.0,30786.0,4.0747]
[1609833528646,0.14659,30801.0,30786.0,4.0747]
[1609833530049,0.13632608,30792.0,30790.0,0.13632608]
[1609833530849,0.14659,30801.0,30790.0,0.13632608]
[1609833531949,0.14659,30801.0,30800.0,0.13632608]
[1609833532651,0.11181,30815.0,30799.0,3.9129]
[1609833532852,0.2865,30825.0,30799.0,3.9129]
[1609833533452,0.2865,30825.0,30799.0,4.0519]
[1609833534052,0.13632608,30823.0,30819.0,0.13632608]
[1609833534255,1.03794608,30823.0,30799.0,4.0519]
[1609833534452,0.27254608,30823.0,30799.0,0.139]
[1609833534652,5.1615,30817.0,30799.0,0.139]
[1609833535053,5.1615,30817.0,30792.0,0.1491]
[1609833535955,0.13632608,30805.0,30792.0,0.28542608]
[1609833536156,0.24849608,30805.0,30792.0,0.28542608]
[1609833538060,0.13632608,30793.0,30792.0,0.14472608]
[1609833538260,0.13632608,30793.0,30792.0,0.0084]
[1609833538661,0.13632608,30793.0,30785.0,0.12212]
[1609833538860,0.13632608,30793.0,30777.0,0.13575]
[1609833539060,0.13632608,30793.0,30775.0,3.8632]
[1609833540061,0.13632608,30788.0,30785.0,0.13632608]
[1609833540661,0.13632608,30788.0,30775.0,3.8632]
[1609833541361,0.23265608,30788.0,30775.0,3.8632]
[1609833541562,0.23265608,30788.0,30773.0,2.1558688]
[1609833541965,0.23265608,30788.0,30779.0,0.13632608]
[1609833542464,0.23265608,30788.0,30769.0,2.15900016]
[1609833542663,0.09633,30788.0,30769.0,2.15900016]
[1609833543566,0.09633,30788.0,30763.0,0.13779]
[1609833543965,0.09633,30788.0,30765.0,0.13632608]
[1609833545967,0.13632608,30769.0,30765.0,0.13632608]
[1609833546568,0.1269,30781.0,30765.0,0.13632608]
[1609833547670,0.1269,30781.0,30763.0,0.13779]
[1609833547868,0.1269,30781.0,30759.0,4.6513]
[1609833548069,0.1269,30781.0,30757.0,2.15937343]
[1609833548269,0.13632608,30775.0,30770.0,0.13632608]
[1609833549268,0.13632608,30775.0,30759.0,2.16045968]
[1609833549870,4.5435,30769.0,30759.0,2.16045968]
[1609833550070,4.64705,30769.0,30759.0,2.16045968]